[Event "Cracovia Chess Festival A 2021"]
[Site "Cracow"]
[Date "2022.01.03"]
[Round "8.3"]
[White "Zylka, Stanislaw"]
[Black "Chakravarthi Reddy, M."]
[Result "1-0"]
[ECO "C13"]
[WhiteElo "2406"]
[BlackElo "2342"]
[Annotator "ChessBase"]
[PlyCount "89"]
[EventDate "2021.12.27"]
[EventCountry "POL"]
[SourceTitle "playchess.com"]
[Source "ChessBase"]
[SourceQuality "1"]
[TimeControl "40/5400+30:1800+30"]

1. e4 {[%emt 0:00:04]} e6 {[%emt 0:02:36]} 2. d4 {[%emt 0:00:05]} d5 {[%emt 0:00:02]} 3. Nc3 {[%emt 0:00:14]} Nf6 {[%emt 0:00:13]} 4. Bg5 {[%emt 0:00:12]} Be7 {[%emt 0:00:03]} 5. e5 {[%emt 0:00:14]} Nfd7 {[%emt 0:00:03]} 6. h4 {[%emt 0:00:15]} Bxg5 {[%emt 0:00:03]} 7. hxg5 {[%emt 0:00:11]} Qxg5 {[%emt 0:00:03]} 8. Nf3 {[%emt 0:01:09]} Qe7 {[%emt 0:00:04]} 9. Qd2 {[%emt 0:00:34]} Nc6 {[%emt 0:00:04]} 10. O-O-O {[%emt 0:00:34]} Nb6 {[%emt 0:00:44]} 11. Bd3 {[%emt 0:05:18]} Bd7 {[%emt 0:03:18]} 12. Rh3 {[%emt 0:01:44]} O-O-O {[%emt 0:01:20]} 13. Rdh1 {[%emt 0:00:15]} h6 {[%emt 0:00:20]} 14. g4 {[%emt 0:03:44]} Rhf8 {[%emt 0:00:56]} 15. a3 {[%emt 0:14:03]} f6 {[%emt 0:02:34]} 16. Re1 {[%emt 0:00:06]} Be8 {[%emt 0:09:50]} 17. exf6 {[%emt 0:04:00]} Qxf6 {[%emt 0:00:29]} 18. g5 {[%emt 0:00:53]} hxg5 {[%emt 0:00:16]} 19. Nxg5 {[%emt 0:00:27]} Qxf2 {[%emt 0:07:43]} 20. Nxe6 {[%emt 0:02:30]} Qxd2+ {[%emt 0:05:13]} 21. Kxd2 {[%emt 0:00:07]} Bd7 {[%emt 0:00:09]} 22. Nxd8 {[%emt 0:00:24]} Bxh3 {[%emt 0:06:27]} 23. Nxc6 {[%emt 0:00:35]} bxc6 {[%emt 0:00:05]} 24. Re7 {[%emt 0:01:34]} Rg8 {[%emt 0:06:25]} 25. Bh7 Nc4+ {[%emt 0:00:11]} 26. Kc1 {[%emt 0:00:26]} Kd8 {[%emt 0:18:13]} 27. Rf7 {[%emt 0:01:00]} Re8 {[%emt 0:00:56]} 28. Kb1 {[%emt 0:00:18]} g5 {[%emt 0:02:20]} 29. Rg7 {[%emt 0:01:02]} g4 {[%emt 0:10:19]} 30. Na4 {[%emt 0:02:53]} Re1+ {[%emt 0:00:33]} 31. Ka2 {[%emt 0:00:02]} Rg1 {[%emt 0:03:14]} 32. Bf5 {[%emt 0:02:59]} Nd6 {[%emt 0:10:35]} 33. Be6 {[%emt 0:01:15]} Ne4 {[%emt 0:04:07]} 34. Rd7+ {[%emt 0:02:14]} Ke8 {[%emt 0:00:11]} 35. Rxc7 {[%emt 0:00:29]} Bf1 {[%emt 0:00:30]} 36. Rxc6 {[%emt 0:00:52]} Nf6 {[%emt 0:05:03]} 37. Rc7 {[%emt 0:03:36]} g3 {[%emt 0:00:36]} 38. Nc5 {[%emt 0:00:33]} Kd8 {[%emt 0:01:58]} 39. Rg7 {[%emt 0:04:33]} Ke8 {[%emt 0:01:43]} 40. Bf5 {[%emt 0:00:00]} Kd8 {[%emt 0:00:00]} 41. b3 {[%emt 0:11:33]} g2 {[%emt 0:06:26]} 42. Kb2 {[%emt 0:02:01]} a6 {[%emt 0:10:34]} 43. Ne6+ {[%emt 0:05:25]} Kc8 {[%emt 0:00:35]} 44. Nf4+ {[%emt 0:00:22]} Kb8 {[%emt 0:00:06]} 45. Bh3 {[%emt 0:00:38]} 1-0

[Event "Cracovia Chess Festival A 2021"]
[Site "Cracow"]
[Date "2022.01.03"]
[Round "8.4"]
[White "Pacan-Milej, Kosma"]
[Black "Leniart, Arkadiusz"]
[Result "1-0"]
[ECO "D38"]
[WhiteElo "2401"]
[BlackElo "2472"]
[Annotator "ChessBase"]
[PlyCount "79"]
[EventDate "2021.12.27"]
[EventCountry "POL"]
[SourceTitle "playchess.com"]
[Source "ChessBase"]
[SourceQuality "1"]
[TimeControl "40/5400+30:1800+30"]

1. d4 {[%emt 0:00:04]} Nf6 {[%emt 0:00:30]} 2. c4 {[%emt 0:00:11]} e6 {[%emt 0:00:05]} 3. Nf3 {[%emt 0:00:43]} d5 {[%emt 0:00:15]} 4. Nc3 {[%emt 0:00:27]} Bb4 {[%emt 0:00:53]} 5. Bg5 {[%emt 0:01:49]} O-O {[%emt 0:08:25]} 6. e3 {[%emt 0:02:12]} h6 {[%emt 0:00:47]} 7. Bxf6 {[%emt 0:10:32]} Qxf6 {[%emt 0:01:32]} 8. Qb3 {[%emt 0:01:23]} c5 {[%emt 0:08:24]} 9. cxd5 {[%emt 0:15:18]} exd5 {[%emt 0:01:08]} 10. dxc5 {[%emt 0:17:30]} Nc6 {[%emt 0:02:16]} 11. Bb5 {[%emt 0:08:30]} d4 {[%emt 0:09:26]} 12. Bxc6 {[%emt 0:05:12]} dxc3 {[%emt 0:00:58]} 13. Qxb4 {[%emt 0:00:08]} cxb2 {[%emt 0:02:10]} 14. Rb1 {[%emt 0:00:56]} bxc6 {[%emt 0:01:25]} 15. O-O {[%emt 0:07:29]} Ba6 {[%emt 0:24:16]} 16. Rfe1 {[%emt 0:00:18]} Bd3 {[%emt 0:00:57]} 17. Rxb2 {[%emt 0:00:33]} Rab8 {[%emt 0:00:07]} 18. Qxb8 {[%emt 0:00:15]} Rxb8 {[%emt 0:00:03]} 19. Rb3 Rb7 20. Rxb7 {[%emt 0:00:34]} Kh7 {[%emt 0:00:34]} 21. Rb8 {[%emt 0:04:09]} Qe5 {[%emt 0:02:09]} 22. Nd4 {[%emt 0:10:31]} Bc4 {[%emt 0:00:06]} 23. Rb3 {[%emt 0:06:48]} Qg5 {[%emt 0:05:34]} 24. Nxc6 {[%emt 0:00:54]} Qf6 {[%emt 0:05:24]} 25. h4 {[%emt 0:00:59]} Bxb3 {[%emt 0:00:18]} 26. Nd4 {[%emt 0:00:05]} Qc6 27. axb3 Qa6 {[%emt 0:04:56]} 28. c6 {[%emt 0:01:25]} Qa3 {[%emt 0:04:32]} 29. Re2 {[%emt 0:00:17]} Qa1+ {[%emt 0:00:21]} 30. Kh2 {[%emt 0:00:06]} Qa5 {[%emt 0:00:03]} 31. Rc2 {[%emt 0:00:19]} Qc7+ {[%emt 0:00:04]} 32. g3 {[%emt 0:00:52]} a6 {[%emt 0:00:06]} 33. b4 {[%emt 0:00:17]} g5 {[%emt 0:00:24]} 34. hxg5 {[%emt 0:00:11]} hxg5 {[%emt 0:00:48]} 35. b5 {[%emt 0:00:21]} axb5 {[%emt 0:03:04]} 36. Nxb5 {[%emt 0:00:04]} Qc8 {[%emt 0:00:21]} 37. c7 {[%emt 0:00:17]} Kg6 {[%emt 0:00:08]} 38. Nd6 {[%emt 0:00:29]} Qh8+ {[%emt 0:00:05]} 39. Kg2 {[%emt 0:00:09]} Qa8+ {[%emt 0:00:04]} 40. e4 {[%emt 0:00:05]} 1-0

[Event "Cracovia Chess Festival A 2021"]
[Site "Cracow"]
[Date "2022.01.03"]
[Round "8.7"]
[White "Golubka, Petro"]
[Black "Malek, Jan"]
[Result "1-0"]
[ECO "B20"]
[WhiteElo "2408"]
[BlackElo "2149"]
[Annotator "ChessBase"]
[PlyCount "53"]
[EventDate "2021.12.27"]
[EventCountry "POL"]
[SourceTitle "playchess.com"]
[Source "ChessBase"]
[SourceQuality "1"]
[TimeControl "40/5400+30:1800+30"]

1. e4 {[%emt 0:05:18]} c5 {[%emt 0:00:07]} 2. b3 {[%emt 0:01:20]} d6 {[%emt 0:14:08]} 3. Bb2 {[%emt 0:00:07]} Nc6 {[%emt 0:00:09]} 4. Bb5 {[%emt 0:00:17]} Bd7 {[%emt 0:00:42]} 5. f4 {[%emt 0:00:14]} a6 {[%emt 0:00:51]} 6. Bxc6 {[%emt 0:01:16]} Bxc6 {[%emt 0:00:03]} 7. Qe2 {[%emt 0:00:14]} e6 {[%emt 0:02:18]} 8. Nf3 {[%emt 0:00:12]} Nf6 {[%emt 0:00:10]} 9. Nc3 {[%emt 0:05:21]} Be7 {[%emt 0:10:15]} 10. O-O-O {[%emt 0:03:18]} Qc7 {[%emt 0:03:25]} 11. g4 {[%emt 0:07:24]} b5 {[%emt 0:09:56]} 12. g5 {[%emt 0:11:14]} Nh5 {[%emt 0:02:58]} 13. f5 {[%emt 0:00:33]} b4 {[%emt 0:04:56]} 14. Na4 {[%emt 0:03:17]} e5 {[%emt 0:02:09]} 15. Qe3 {[%emt 0:04:32]} Bxa4 {[%emt 0:12:28]} 16. bxa4 {[%emt 0:00:02]} c4 {[%emt 0:01:11]} 17. Kb1 {[%emt 0:00:37]} Rb8 {[%emt 0:01:23]} 18. d4 {[%emt 0:01:38]} c3 {[%emt 0:01:40]} 19. Bc1 {[%emt 0:00:07]} Qa5 {[%emt 0:09:00]} 20. dxe5 {[%emt 0:02:25]} Qxa4 {[%emt 0:00:16]} 21. Qd4 {[%emt 0:05:38]} dxe5 {[%emt 0:05:52]} 22. Nxe5 {[%emt 0:03:01]} O-O {[%emt 0:00:33]} 23. Qd7 {[%emt 0:12:33]} Rb5 {[%emt 0:01:17]} 24. Qxe7 {[%emt 0:04:56]} Ra5 {[%emt 0:01:21]} 25. a3 {[%emt 0:00:29]} bxa3 {[%emt 0:03:57]} 26. Rd8 {[%emt 0:01:50]} Qb5+ {[%emt 0:00:07]} 27. Ka2 {[%emt 0:00:21]} 1-0

[Event "Cracovia Chess Festival A 2021"]
[Site "Cracow"]
[Date "2022.01.03"]
[Round "8.8"]
[White "Kokoszczynski, Jan"]
[Black "Niedbala, Bartlomiej"]
[Result "1/2-1/2"]
[ECO "A36"]
[WhiteElo "2273"]
[BlackElo "2385"]
[Annotator "ChessBase"]
[PlyCount "118"]
[EventDate "2021.12.27"]
[EventCountry "POL"]
[SourceTitle "playchess.com"]
[Source "ChessBase"]
[SourceQuality "1"]
[TimeControl "40/5400+30:1800+30"]

1. c4 {[%emt 0:00:02]} c5 {[%emt 0:11:20]} 2. Nc3 {[%emt 0:02:47]} Nc6 {[%emt 0:05:38]} 3. g3 {[%emt 0:02:38]} g6 {[%emt 0:00:35]} 4. Bg2 {[%emt 0:00:22]} Bg7 {[%emt 0:00:08]} 5. d3 {[%emt 0:00:44]} Nf6 {[%emt 0:06:17]} 6. e4 {[%emt 0:03:44]} O-O {[%emt 0:01:02]} 7. Nge2 {[%emt 0:00:27]} d6 {[%emt 0:04:48]} 8. O-O {[%emt 0:00:47]} a6 {[%emt 0:00:21]} 9. h3 {[%emt 0:02:11]} Rb8 {[%emt 0:02:15]} 10. a4 {[%emt 0:00:32]} Ne8 {[%emt 0:03:28]} 11. Be3 {[%emt 0:00:54]} Nc7 {[%emt 0:03:33]} 12. Rb1 {[%emt 0:07:51]} Ne6 {[%emt 0:08:04]} 13. Qd2 {[%emt 0:06:48]} Ned4 {[%emt 0:00:41]} 14. Kh2 {[%emt 0:00:56]} e6 {[%emt 0:03:53]} 15. f4 {[%emt 0:11:21]} Qd7 {[%emt 0:01:59]} 16. Bg1 {[%emt 0:05:15]} b6 {[%emt 0:04:57]} 17. b3 {[%emt 0:05:40]} Bb7 {[%emt 0:01:17]} 18. Nxd4 {[%emt 0:00:40]} Nxd4 {[%emt 0:00:31]} 19. Ne2 {[%emt 0:00:16]} Nxe2 {[%emt 0:02:47]} 20. Qxe2 {[%emt 0:00:06]} b5 {[%emt 0:02:10]} 21. axb5 {[%emt 0:03:25]} axb5 {[%emt 0:01:00]} 22. Rfd1 {[%emt 0:03:52]} Bd4 {[%emt 0:06:16]} 23. Bxd4 {[%emt 0:02:03]} cxd4 {[%emt 0:01:48]} 24. Qf2 {[%emt 0:00:27]} e5 {[%emt 0:00:44]} 25. f5 {[%emt 0:01:09]} f6 {[%emt 0:00:32]} 26. h4 {[%emt 0:00:58]} Kg7 {[%emt 0:01:46]} 27. Bh3 {[%emt 0:04:06]} Bc8 {[%emt 0:01:04]} 28. Ra1 {[%emt 0:12:20]} Rf7 {[%emt 0:06:34]} 29. Ra2 {[%emt 0:03:48]} bxc4 {[%emt 0:00:48]} 30. bxc4 {[%emt 0:02:11]} Rb3 {[%emt 0:00:50]} 31. g4 {[%emt 0:08:42]} Qe7 {[%emt 0:05:12]} 32. Bf1 {[%emt 0:02:28]} g5 {[%emt 0:02:05]} 33. hxg5 {[%emt 0:00:46]} fxg5 {[%emt 0:00:03]} 34. Be2 {[%emt 0:02:29]} Qb7 35. Rda1 {[%emt 0:02:47]} Rb2 {[%emt 0:01:49]} 36. Rxb2 {[%emt 0:00:23]} Qxb2 {[%emt 0:00:02]} 37. Ra8 {[%emt 0:00:51]} Bb7 {[%emt 0:02:19]} 38. Re8 {[%emt 0:01:01]} Bxe4 {[%emt 0:01:45]} 39. Kg3 {[%emt 0:00:06]} Qc3 {[%emt 0:04:26]} 40. Qf1 {[%emt 0:00:00]} Ra7 {[%emt 0:00:00]} 41. f6+ {[%emt 0:27:12]} Kf7 {[%emt 0:05:25]} 42. Rd8 {[%emt 0:00:03]} Bxd3 {[%emt 0:24:05]} 43. Bxd3 {[%emt 0:01:01]} e4 {[%emt 0:00:02]} 44. Rxd6 {[%emt 0:01:59]} exd3 {[%emt 0:00:08]} 45. Qh1 {[%emt 0:02:32]} d2+ {[%emt 0:03:52]} 46. Kg2 {[%emt 0:00:01]} Qc2 {[%emt 0:03:38]} 47. Qh5+ {[%emt 0:00:03]} Qg6 {[%emt 0:00:04]} 48. Qxg6+ {[%emt 0:00:15]} Kxg6 {[%emt 0:00:06]} 49. Rxd4 {[%emt 0:00:34]} Ra2 {[%emt 0:00:01]} 50. Kf3 {[%emt 0:00:07]} Kxf6 {[%emt 0:00:31]} 51. Ke3 {[%emt 0:02:11]} Rc2 {[%emt 0:00:46]} 52. Rxd2 {[%emt 0:00:54]} Rxc4 {[%emt 0:00:01]} 53. Kf3 {[%emt 0:01:39]} Rc3+ {[%emt 0:00:01]} 54. Ke4 {[%emt 0:00:33]} Ke6 {[%emt 0:01:04]} 55. Ra2 {[%emt 0:00:17]} Rc4+ {[%emt 0:00:52]} 56. Kf3 {[%emt 0:00:05]} Kd5 {[%emt 0:00:04]} 57. Ra5+ {[%emt 0:00:54]} Rc5 {[%emt 0:02:12]} 58. Rxc5+ {[%emt 0:00:36]} Kxc5 {[%emt 0:00:01]} 59. Ke4 {[%emt 0:00:04]} Kd6 {[%emt 0:00:14]} 1/2-1/2

[Event "Cracovia Chess Festival A 2021"]
[Site "Cracow"]
[Date "2022.01.03"]
[Round "8.9"]
[White "Cukrowski, Filip"]
[Black "Kacprzak, Kacper"]
[Result "1-0"]
[ECO "A40"]
[WhiteElo "2367"]
[BlackElo "2219"]
[Annotator "ChessBase"]
[PlyCount "46"]
[EventDate "2021.12.27"]
[EventCountry "POL"]
[SourceTitle "playchess.com"]
[Source "ChessBase"]
[SourceQuality "1"]
[TimeControl "40/5400+30:1800+30"]

1. d4 {[%emt 0:10:58]} Nf6 {[%emt 0:00:08]} 2. c4 {[%emt 0:00:08]} e6 {[%emt 0:00:04]} 3. g3 {[%emt 0:00:05]} d5 {[%emt 0:01:51]} 4. Nf3 {[%emt 0:00:41]} dxc4 {[%emt 0:00:40]} 5. Qa4+ {[%emt 0:02:09]} Nbd7 {[%emt 0:00:30]} 6. Bg2 {[%emt 0:14:16]} a6 {[%emt 0:01:07]} 7. Nc3 {[%emt 0:33:58]} Rb8 {[%emt 0:07:38]} 8. Qxc4 {[%emt 0:09:06]} b5 {[%emt 0:03:30]} 9. Qd3 {[%emt 0:00:01]} Bb7 {[%emt 0:01:24]} 10. O-O {[%emt 0:01:20]} Be7 {[%emt 0:04:44]} 11. Bf4 {[%emt 0:00:40]} Rc8 {[%emt 0:05:34]} 12. Rfd1 {[%emt 0:01:28]} O-O {[%emt 0:08:01]} 13. Ne5 {[%emt 0:09:18]} Bxg2 {[%emt 0:12:48]} 14. Kxg2 {[%emt 0:01:02]} c5 {[%emt 0:22:16]} 15. dxc5 {[%emt 0:00:38]} Nxc5 {[%emt 0:00:56]} 16. Qf3 {[%emt 0:00:05]} Qb6 {[%emt 0:00:21]} 17. b4 {[%emt 0:01:11]} Na4 {[%emt 0:03:44]} 18. Nxa4 {[%emt 0:00:04]} bxa4 {[%emt 0:00:04]} 19. Bg5 {[%emt 0:02:56]} Qb5 {[%emt 0:02:48]} 20. Bxf6 {[%emt 0:03:26]} Bxf6 {[%emt 0:00:12]} 21. Nd7 {[%emt 0:00:04]} Bxa1 {[%emt 0:00:14]} 22. Nxf8 {[%emt 0:00:02]} Kxf8 {[%emt 0:03:38]} 23. Rxa1 {[%emt 0:00:02]} Qxb4 {[%emt 0:01:34]} 1-0

[Event "Cracovia Chess Festival A 2021"]
[Site "Cracow"]
[Date "2022.01.03"]
[Round "8.10"]
[White "Pniaczek, Marek"]
[Black "Turski, Bartlomiej"]
[Result "1/2-1/2"]
[ECO "B62"]
[WhiteElo "2329"]
[BlackElo "2114"]
[Annotator "ChessBase"]
[PlyCount "124"]
[EventDate "2021.12.27"]
[EventCountry "POL"]
[SourceTitle "playchess.com"]
[Source "ChessBase"]
[SourceQuality "1"]
[TimeControl "40/5400+30:1800+30"]

1. e4 {[%emt 0:00:02]} c5 {[%emt 0:00:05]} 2. Nf3 {[%emt 0:00:04]} d6 {[%emt 0:00:05]} 3. d4 {[%emt 0:00:03]} cxd4 {[%emt 0:00:03]} 4. Nxd4 {[%emt 0:00:03]} Nf6 {[%emt 0:00:07]} 5. Nc3 {[%emt 0:00:02]} Nc6 {[%emt 0:00:05]} 6. Bg5 {[%emt 0:00:04]} e6 {[%emt 0:01:21]} 7. Qd3 {[%emt 0:00:08]} Be7 {[%emt 0:00:05]} 8. O-O-O {[%emt 0:00:12]} O-O {[%emt 0:04:20]} 9. h4 {[%emt 0:00:23]} Qb6 {[%emt 0:00:31]} 10. f3 {[%emt 0:00:06]} Qxd4 {[%emt 0:03:53]} 11. Qxd4 {[%emt 0:00:05]} Nxd4 {[%emt 0:00:05]} 12. Rxd4 {[%emt 0:00:03]} Rd8 {[%emt 0:01:01]} 13. Be2 {[%emt 0:06:07]} Bd7 {[%emt 0:21:51]} 14. Rhd1 {[%emt 0:00:36]} Bc6 {[%emt 0:01:52]} 15. g4 {[%emt 0:00:50]} Kf8 {[%emt 0:02:45]} 16. Be3 {[%emt 0:03:51]} d5 {[%emt 0:15:34]} 17. g5 {[%emt 0:04:19]} Nh5 {[%emt 0:00:43]} 18. exd5 {[%emt 0:01:14]} exd5 {[%emt 0:00:09]} 19. Rg4 {[%emt 0:24:42]} f5 {[%emt 0:05:39]} 20. gxf6 {[%emt 0:04:50]} Bxf6 {[%emt 0:05:42]} 21. Nb5 {[%emt 0:15:11]} Re8 {[%emt 0:18:48]} 22. Bc5+ {[%emt 0:03:43]} Kg8 {[%emt 0:00:46]} 23. Bd3 {[%emt 0:01:44]} Bd7 {[%emt 0:02:21]} 24. Rgg1 {[%emt 0:00:31]} Be5 {[%emt 0:09:02]} 25. Nd6 {[%emt 0:12:53]} Rf8 {[%emt 0:01:15]} 26. Nxb7 {[%emt 0:00:39]} Rxf3 {[%emt 0:02:51]} 27. Be2 {[%emt 0:01:32]} Rf5 {[%emt 0:00:15]} 28. Bg4 {[%emt 0:04:31]} Nf4 {[%emt 0:00:10]} 29. Bxf5 {[%emt 0:00:24]} Bxf5 {[%emt 0:00:01]} 30. Rge1 {[%emt 0:00:59]} Bf6 {[%emt 0:01:28]} 31. Be7 {[%emt 0:05:37]} Rc8 {[%emt 0:01:43]} 32. c3 {[%emt 0:02:26]} Nd3+ {[%emt 0:00:40]} 33. Rxd3 {[%emt 0:00:06]} Bxd3 {[%emt 0:00:05]} 34. Bxf6 {[%emt 0:00:29]} gxf6 {[%emt 0:00:11]} 35. Kd2 {[%emt 0:01:58]} Bg6 {[%emt 0:00:37]} 36. Re7 {[%emt 0:03:43]} d4 {[%emt 0:01:17]} 37. cxd4 {[%emt 0:02:06]} Kf8 {[%emt 0:00:32]} 38. Re2 {[%emt 0:02:41]} Rb8 {[%emt 0:00:06]} 39. Nd6 {[%emt 0:00:27]} Rxb2+ {[%emt 0:00:38]} 40. Ke3 {[%emt 0:00:00]} Rb6 {[%emt 0:00:00]} 41. Nc8 {[%emt 0:03:51]} Re6+ {[%emt 0:06:54]} 42. Kd2 {[%emt 0:00:08]} Ra6 {[%emt 0:03:06]} 43. Ke1 {[%emt 0:06:35]} Bf5 {[%emt 0:01:42]} 44. Ne7 {[%emt 0:00:01]} Be6 {[%emt 0:00:25]} 45. d5 {[%emt 0:00:04]} Kxe7 {[%emt 0:00:50]} 46. Kf2 {[%emt 0:00:05]} Kf7 {[%emt 0:01:07]} 47. dxe6+ {[%emt 0:00:04]} Rxe6 {[%emt 0:00:06]} 48. Rc2 {[%emt 0:00:11]} Ra6 {[%emt 0:00:45]} 49. Kg3 {[%emt 0:00:34]} Kg6 {[%emt 0:00:42]} 50. Rf2 {[%emt 0:00:28]} Ra3+ {[%emt 0:00:36]} 51. Kg4 {[%emt 0:00:17]} h5+ {[%emt 0:02:20]} 52. Kf4 {[%emt 0:00:08]} Rh3 {[%emt 0:00:56]} 53. Rg2+ {[%emt 0:00:25]} Kf7 {[%emt 0:00:13]} 54. Rc2 {[%emt 0:00:47]} Rxh4+ {[%emt 0:01:38]} 55. Kf5 {[%emt 0:00:01]} Ra4 {[%emt 0:00:08]} 56. Rc7+ {[%emt 0:00:03]} Ke8 {[%emt 0:00:09]} 57. Kxf6 {[%emt 0:01:31]} Rxa2 {[%emt 0:00:12]} 58. Rh7 {[%emt 0:00:41]} Ra5 {[%emt 0:02:19]} 59. Ke6 {[%emt 0:00:29]} Kf8 {[%emt 0:00:10]} 60. Kf6 {[%emt 0:00:41]} Ra6+ {[%emt 0:01:44]} 61. Kg5 {[%emt 0:00:16]} Ra1 {[%emt 0:00:35]} 62. Kf6 {[%emt 0:01:13]} Ra6+ {[%emt 0:01:01]} 1/2-1/2

[Event "Cracovia Chess Festival A 2021"]
[Site "Cracow"]
[Date "2022.01.03"]
[Round "8.11"]
[White "Georgakopoulos, Nikolaos K."]
[Black "Chylewski, Patryk"]
[Result "0-1"]
[ECO "C77"]
[WhiteElo "2159"]
[BlackElo "2303"]
[Annotator "ChessBase"]
[PlyCount "102"]
[EventDate "2021.12.27"]
[EventCountry "POL"]
[SourceTitle "playchess.com"]
[Source "ChessBase"]
[SourceQuality "1"]
[TimeControl "40/5400+30:1800+30"]

1. e4 {[%emt 0:00:03]} e5 {[%emt 0:00:05]} 2. Nf3 {[%emt 0:00:06]} Nc6 {[%emt 0:00:03]} 3. Bb5 {[%emt 0:00:04]} a6 {[%emt 0:00:05]} 4. Ba4 {[%emt 0:00:04]} Nf6 {[%emt 0:00:07]} 5. d3 {[%emt 0:00:16]} b5 {[%emt 0:00:09]} 6. Bb3 {[%emt 0:00:06]} Be7 {[%emt 0:00:06]} 7. a4 {[%emt 0:00:05]} Rb8 {[%emt 0:00:14]} 8. axb5 {[%emt 0:00:37]} axb5 {[%emt 0:00:04]} 9. O-O {[%emt 0:00:05]} O-O {[%emt 0:00:08]} 10. Re1 {[%emt 0:00:07]} d6 {[%emt 0:01:23]} 11. h3 {[%emt 0:00:17]} h6 {[%emt 0:01:02]} 12. c3 {[%emt 0:10:55]} Re8 {[%emt 0:01:19]} 13. Nbd2 {[%emt 0:02:17]} Bf8 {[%emt 0:01:05]} 14. d4 {[%emt 0:13:58]} Bb7 {[%emt 0:02:23]} 15. Bc2 {[%emt 0:15:55]} Ra8 {[%emt 0:01:00]} 16. Rxa8 {[%emt 0:00:26]} Qxa8 {[%emt 0:00:16]} 17. d5 {[%emt 0:01:23]} Nb8 {[%emt 0:06:24]} 18. b3 {[%emt 0:17:36]} Nbd7 {[%emt 0:02:00]} 19. c4 {[%emt 0:02:31]} Ba6 {[%emt 0:04:22]} 20. Ba3 {[%emt 0:04:02]} Nb6 {[%emt 0:05:33]} 21. Qe2 {[%emt 0:03:56]} c6 {[%emt 0:10:42]} 22. Bd3 {[%emt 0:01:47]} bxc4 {[%emt 0:09:53]} 23. bxc4 {[%emt 0:00:32]} cxd5 {[%emt 0:03:42]} 24. cxd5 {[%emt 0:00:18]} Bxd3 {[%emt 0:00:29]} 25. Qxd3 {[%emt 0:00:05]} Qa4 {[%emt 0:01:57]} 26. Rb1 {[%emt 0:09:14]} Nfd7 {[%emt 0:02:25]} 27. Qb3 {[%emt 0:03:35]} Qa6 {[%emt 0:01:52]} 28. Rc1 {[%emt 0:00:45]} Ra8 {[%emt 0:03:58]} 29. Bb4 {[%emt 0:01:07]} Qe2 {[%emt 0:02:17]} 30. Qb1 {[%emt 0:03:56]} Na4 {[%emt 0:01:52]} 31. Rc7 {[%emt 0:01:43]} Nac5 {[%emt 0:01:26]} 32. Qe1 {[%emt 0:08:02]} Qb5 {[%emt 0:02:53]} 33. Bc3 {[%emt 0:00:01]} Nf6 {[%emt 0:01:54]} 34. Kh2 {[%emt 0:00:53]} Ra4 {[%emt 0:04:08]} 35. Nh4 {[%emt 0:00:41]} Ncxe4 {[%emt 0:01:11]} 36. Nf5 {[%emt 0:00:28]} g6 {[%emt 0:02:33]} 37. Ne3 {[%emt 0:00:28]} Nxd5 {[%emt 0:02:16]} 38. Nxd5 {[%emt 0:00:09]} Qxd5 {[%emt 0:00:04]} 39. Nxe4 {[%emt 0:00:41]} Qxe4 {[%emt 0:00:31]} 40. Qd1 {[%emt 0:00:00]} Qf4+ {[%emt 0:00:00]} 41. Kg1 {[%emt 0:00:30]} Ra2 {[%emt 0:01:40]} 42. Be1 {[%emt 0:01:43]} Qe4 {[%emt 0:03:41]} 43. Kh2 {[%emt 0:04:03]} Re2 {[%emt 0:09:42]} 44. Qb3 {[%emt 0:03:53]} Qf4+ {[%emt 0:02:59]} 45. g3 {[%emt 0:00:06]} Qf5 {[%emt 0:01:07]} 46. Qc3 {[%emt 0:01:13]} h5 {[%emt 0:02:44]} 47. h4 {[%emt 0:01:02]} Bh6 {[%emt 0:02:41]} 48. Qb4 {[%emt 0:06:59]} Rxf2+ {[%emt 0:03:17]} 49. Bxf2 {[%emt 0:01:01]} Qxf2+ {[%emt 0:00:07]} 50. Kh3 {[%emt 0:00:57]} Qf1+ {[%emt 0:00:05]} 51. Kh2 {[%emt 0:00:04]} Be3 {[%emt 0:00:08]} 0-1